[Event "Teplice Open 2019"]
[Site "Teplice"]
[Date "2019.06.15"]
[Round "1.22"]
[White "Kangas, Lauri"]
[Black "Krzyzanowski, Marcin"]
[Result "1/2-1/2"]
[ECO "E83"]
[WhiteElo "2059"]
[BlackElo "2510"]
[Annotator "ChessBase"]
[PlyCount "92"]
[EventDate "2019.06.15"]
[EventType "swiss"]
[EventCountry "CZE"]
[SourceTitle "playchess.com"]
[Source "ChessBase"]
[SourceQuality "1"]
[TimeControl "40/5400+30:1800+30"]

1. d4 {[%emt 0:00:00]} Nf6 {[%emt 0:00:00]} 2. c4 {[%emt 0:00:00]} g6 {[%emt 0:00:51]} 3. Nc3 {[%emt 0:00:00]} Bg7 {[%emt 0:00:17]} 4. e4 {[%emt 0:00:04]} d6 {[%emt 0:00:05]} 5. Bd3 {[%emt 0:00:06]} O-O {[%emt 0:00:47]} 6. Nge2 {[%emt 0:00:12]} Nc6 {[%emt 0:00:13]} 7. O-O {[%emt 0:00:24]} Nd7 {[%emt 0:00:27]} 8. Be3 {[%emt 0:01:09]} e5 {[%emt 0:02:07]} 9. d5 {[%emt 0:00:07]} Nd4 {[%emt 0:00:10]} 10. Nb5 {[%emt 0:08:29]} Nxb5 {[%emt 0:07:02]} 11. cxb5 {[%emt 0:00:01]} f5 {[%emt 0:00:11]} 12. f3 {[%emt 0:09:36]} f4 {[%emt 0:04:00]} 13. Bf2 {[%emt 0:00:08]} Nf6 {[%emt 0:00:14]} 14. Rc1 {[%emt 0:02:24]} g5 {[%emt 0:01:13]} 15. Rc3 {[%emt 0:00:35]} Rf7 {[%emt 0:03:53]} 16. Qc2 {[%emt 0:03:43]} Ne8 {[%emt 0:06:20]} 17. Kh1 {[%emt 0:09:35]} h5 {[%emt 0:03:11]} 18. Rc1 {[%emt 0:00:17]} g4 {[%emt 0:10:18]} 19. b6 {[%emt 0:11:52]} axb6 {[%emt 0:02:15]} 20. Bxb6 {[%emt 0:00:30]} gxf3 {[%emt 0:03:38]} 21. gxf3 {[%emt 0:00:10]} Rxa2 {[%emt 0:00:44]} 22. Bb5 {[%emt 0:03:15]} Bh3 {[%emt 0:17:56]} 23. Ng1 {[%emt 0:05:38]} Bd7 {[%emt 0:02:44]} 24. Bxc7 {[%emt 0:01:22]} Qe7 {[%emt 0:03:05]} 25. Bb6 {[%emt 0:04:02]} Kh7 {[%emt 0:04:03]} 26. Bxd7 {[%emt 0:05:44]} Qxd7 {[%emt 0:00:12]} 27. Ra3 {[%emt 0:00:16]} Rxa3 {[%emt 0:02:00]} 28. bxa3 {[%emt 0:00:01]} Bf6 {[%emt 0:02:59]} 29. Qc8 {[%emt 0:03:35]} Qb5 {[%emt 0:08:07]} 30. Qf5+ {[%emt 0:09:54]} Kg7 {[%emt 0:00:06]} 31. Qc8 {[%emt 0:04:08]} Qxb6 {[%emt 0:02:01]} 32. Qxe8 {[%emt 0:00:34]} Qd8 {[%emt 0:00:08]} 33. Qxd8 {[%emt 0:05:07]} Bxd8 {[%emt 0:00:02]} 34. Rc8 {[%emt 0:00:43]} Bb6 {[%emt 0:01:12]} 35. Kg2 {[%emt 0:01:29]} Bc5 {[%emt 0:00:47]} 36. a4 {[%emt 0:02:01]} b5 {[%emt 0:04:30]} 37. axb5 {[%emt 0:03:14]} Rb7 {[%emt 0:01:22]} 38. Ra8 {[%emt 0:01:51]} Rxb5 {[%emt 0:00:20]} 39. Ra2 {[%emt 0:00:43]} Kf6 {[%emt 0:00:38]} 40. Nh3 {[%emt 0:01:47]} Rb3 {[%emt 0:01:10]} 41. Rc2 {[%emt 0:31:06]} Rb1 {[%emt 0:32:06]} 42. Ra2 {[%emt 0:00:20]} Rb8 {[%emt 0:03:36]} 43. Kf1 {[%emt 0:01:01]} Ke7 {[%emt 0:01:42]} 44. Kg2 {[%emt 0:00:00]} Rg8+ {[%emt 0:00:00]} 45. Kf1 {[%emt 0:00:00]} Kd7 {[%emt 0:00:00]} 46. Rg2 {[%emt 0:00:00]} Rxg2 {[%emt 0:06:34]} 1/2-1/2

[Event "Teplice Open 2019"]
[Site "Teplice"]
[Date "2019.06.15"]
[Round "1.23"]
[White "Salomon, Johan"]
[Black "Polansky, Adam Lubos"]
[Result "1-0"]
[ECO "A13"]
[WhiteElo "2509"]
[BlackElo "2056"]
[Annotator "ChessBase"]
[PlyCount "41"]
[EventDate "2019.06.15"]
[EventType "swiss"]
[EventCountry "CZE"]
[SourceTitle "playchess.com"]
[Source "ChessBase"]
[SourceQuality "1"]
[TimeControl "40/5400+30:1800+30"]

1. Nf3 {[%emt 0:00:00]} Nf6 {[%emt 0:00:00]} 2. c4 {[%emt 0:00:00]} e6 {[%emt 0:00:47]} 3. Nc3 {[%emt 0:00:00]} d5 {[%emt 0:00:51]} 4. e3 {[%emt 0:00:01]} Be7 {[%emt 0:01:35]} 5. b3 {[%emt 0:00:07]} b6 {[%emt 0:01:31]} 6. cxd5 {[%emt 0:01:04]} exd5 {[%emt 0:00:17]} 7. Bb5+ {[%emt 0:00:10]} c6 {[%emt 0:01:07]} 8. Be2 {[%emt 0:00:04]} O-O {[%emt 0:00:11]} 9. Bb2 {[%emt 0:00:15]} c5 {[%emt 0:04:50]} 10. d4 {[%emt 0:00:43]} Nc6 {[%emt 0:00:39]} 11. O-O {[%emt 0:01:16]} Bb7 {[%emt 0:03:02]} 12. Rc1 {[%emt 0:05:09]} Rc8 {[%emt 0:07:06]} 13. dxc5 {[%emt 0:01:41]} bxc5 {[%emt 0:01:54]} 14. Na4 {[%emt 0:01:05]} Nb8 {[%emt 0:05:24]} 15. Bxf6 {[%emt 0:01:27]} gxf6 {[%emt 0:01:17]} 16. Nh4 {[%emt 0:09:20]} Nd7 {[%emt 0:09:17]} 17. Bd3 {[%emt 0:04:01]} Ne5 {[%emt 0:02:29]} 18. Bf5 {[%emt 0:09:15]} Rc7 {[%emt 0:07:32]} 19. Qh5 {[%emt 0:00:34]} Ng6 {[%emt 0:00:34]} 20. Rfd1 {[%emt 0:05:44]} Qb8 {[%emt 0:05:21]} 21. e4 {[%emt 0:05:43]} 1-0

[Event "Teplice Open 2019"]
[Site "Teplice"]
[Date "2019.06.15"]
[Round "1.24"]
[White "Marcinczyk, Monika"]
[Black "Gumularz, Szymon"]
[Result "0-1"]
[ECO "B06"]
[WhiteElo "2056"]
[BlackElo "2495"]
[Annotator "ChessBase"]
[PlyCount "54"]
[EventDate "2019.06.15"]
[EventType "swiss"]
[EventCountry "CZE"]
[SourceTitle "playchess.com"]
[Source "ChessBase"]
[SourceQuality "1"]
[TimeControl "40/5400+30:1800+30"]

1. e4 {[%emt 1:08:21]} g6 {[%emt 0:00:07]} 2. d4 {[%emt 0:00:08]} Bg7 {[%emt 0:00:04]} 3. Nc3 {[%emt 0:00:45]} d6 {[%emt 0:00:05]} 4. Be3 {[%emt 0:00:29]} a6 {[%emt 0:00:07]} 5. f3 {[%emt 0:01:14]} b5 {[%emt 0:00:17]} 6. Qd2 {[%emt 0:01:54]} Nd7 {[%emt 0:00:10]} 7. Nh3 {[%emt 0:02:02]} Bb7 {[%emt 0:01:29]} 8. Be2 {[%emt 0:01:43]} Ngf6 {[%emt 0:02:45]} 9. O-O {[%emt 0:02:22]} O-O {[%emt 0:00:45]} 10. Nf2 {[%emt 0:03:35]} c5 {[%emt 0:05:38]} 11. a4 {[%emt 0:06:35]} b4 {[%emt 0:06:23]} 12. Na2 {[%emt 0:01:10]} cxd4 {[%emt 0:02:07]} 13. Bxd4 {[%emt 0:00:18]} a5 {[%emt 0:00:08]} 14. c3 {[%emt 0:10:25]} Nc5 {[%emt 0:04:53]} 15. Nc1 {[%emt 0:00:30]} bxc3 {[%emt 0:07:07]} 16. Bxc3 {[%emt 0:00:55]} Bc6 {[%emt 0:03:49]} 17. b3 {[%emt 0:05:27]} Qb6 {[%emt 0:00:57]} 18. Qb2 {[%emt 0:11:31]} Rfb8 {[%emt 0:03:13]} 19. Rb1 {[%emt 0:04:29]} Ne8 {[%emt 0:07:02]} 20. Bc4 {[%emt 0:03:40]} Nxa4 {[%emt 0:02:53]} 21. bxa4 {[%emt 0:01:10]} Qxb2 {[%emt 0:00:06]} 22. Bxb2 {[%emt 0:00:37]} Rxb2 {[%emt 0:00:19]} 23. Rxb2 {[%emt 0:01:21]} Bxb2 {[%emt 0:00:04]} 24. Bd5 {[%emt 0:02:18]} Bxd5 {[%emt 0:00:28]} 25. exd5 {[%emt 0:00:01]} Nf6 {[%emt 0:00:29]} 26. Ncd3 {[%emt 0:01:45]} Bd4 {[%emt 0:00:41]} 27. Rd1 {[%emt 0:01:44]} Nxd5 {[%emt 0:00:22]} 0-1

[Event "Teplice Open 2019"]
[Site "Teplice"]
[Date "2019.06.15"]
[Round "1.25"]
[White "Janik, Igor"]
[Black "Placer, Sebastian"]
[Result "1-0"]
[ECO "B12"]
[WhiteElo "2483"]
[BlackElo "2052"]
[Annotator "ChessBase"]
[PlyCount "109"]
[EventDate "2019.06.15"]
[EventType "swiss"]
[EventCountry "CZE"]
[SourceTitle "playchess.com"]
[Source "ChessBase"]
[SourceQuality "1"]
[TimeControl "40/5400+30:1800+30"]

1. e4 {[%emt 0:00:00]} c6 {[%emt 0:00:00]} 2. d4 {[%emt 0:00:00]} d5 {[%emt 0:00:00]} 3. e5 {[%emt 0:00:26]} Bf5 {[%emt 0:00:00]} 4. Nf3 {[%emt 0:00:06]} e6 {[%emt 0:00:08]} 5. Be2 {[%emt 0:00:05]} c5 {[%emt 0:00:34]} 6. Be3 {[%emt 0:00:14]} cxd4 {[%emt 0:00:10]} 7. Nxd4 {[%emt 0:00:07]} Ne7 {[%emt 0:00:08]} 8. O-O {[%emt 0:00:37]} Nbc6 {[%emt 0:00:13]} 9. Bb5 {[%emt 0:00:46]} a6 {[%emt 0:01:27]} 10. Bxc6+ {[%emt 0:00:09]} bxc6 {[%emt 0:00:05]} 11. Nd2 {[%emt 0:01:24]} Qc7 {[%emt 0:00:45]} 12. f4 {[%emt 0:01:08]} c5 {[%emt 0:01:47]} 13. N4b3 {[%emt 0:00:37]} d4 {[%emt 0:04:39]} 14. Nc4 {[%emt 0:01:04]} Nd5 {[%emt 0:01:04]} 15. Bd2 {[%emt 0:01:24]} h5 {[%emt 0:03:04]} 16. Rc1 {[%emt 0:03:28]} Be7 {[%emt 0:05:41]} 17. Qf3 {[%emt 0:01:41]} Rb8 {[%emt 0:05:43]} 18. h3 {[%emt 0:11:47]} h4 {[%emt 0:01:44]} 19. Be1 {[%emt 0:01:11]} Bg6 {[%emt 0:03:50]} 20. Nbd2 {[%emt 0:03:40]} Nb4 {[%emt 0:09:34]} 21. Ne4 {[%emt 0:00:14]} Bxe4 {[%emt 0:02:43]} 22. Qxe4 {[%emt 0:00:01]} Qc6 {[%emt 0:03:26]} 23. Qxc6+ {[%emt 0:00:56]} Nxc6 {[%emt 0:00:04]} 24. Rf3 {[%emt 0:00:54]} Nb4 {[%emt 0:04:41]} 25. Bxb4 {[%emt 0:01:13]} Rxb4 {[%emt 0:00:07]} 26. b3 {[%emt 0:00:12]} Kd7 {[%emt 0:02:28]} 27. Kf2 {[%emt 0:00:44]} f5 {[%emt 0:06:05]} 28. exf6 {[%emt 0:02:16]} gxf6 {[%emt 0:02:48]} 29. c3 {[%emt 0:01:47]} dxc3 {[%emt 0:01:14]} 30. Rd1+ {[%emt 0:00:05]} Ke8 {[%emt 0:03:00]} 31. Rxc3 {[%emt 0:02:42]} Kf7 {[%emt 0:06:18]} 32. Re3 {[%emt 0:01:22]} Rc8 {[%emt 0:07:33]} 33. Rde1 {[%emt 0:00:29]} Rc6 {[%emt 0:00:13]} 34. f5 {[%emt 0:00:05]} e5 {[%emt 0:00:41]} 35. Re4 {[%emt 0:00:07]} Rc8 {[%emt 0:01:56]} 36. Rxh4 {[%emt 0:00:19]} Rd8 {[%emt 0:00:44]} 37. Rh7+ {[%emt 0:00:20]} Kf8 {[%emt 0:00:06]} 38. Rh8+ {[%emt 0:00:11]} Kf7 {[%emt 0:00:01]} 39. Rxd8 {[%emt 0:00:08]} Bxd8 {[%emt 0:00:00]} 40. Rd1 {[%emt 0:00:12]} Ke7 {[%emt 0:00:08]} 41. Rd6 {[%emt 0:30:34]} a5 {[%emt 0:30:25]} 42. Ra6 {[%emt 0:00:37]} Rb5 {[%emt 0:00:14]} 43. Ra7+ {[%emt 0:00:10]} Kf8 {[%emt 0:00:14]} 44. Ke3 {[%emt 0:00:16]} Be7 {[%emt 0:01:56]} 45. Ke4 {[%emt 0:01:40]} Rb8 {[%emt 0:00:13]} 46. Nxa5 {[%emt 0:00:21]} Rc8 {[%emt 0:00:28]} 47. g4 {[%emt 0:00:39]} Ke8 {[%emt 0:01:29]} 48. g5 {[%emt 0:00:55]} fxg5 {[%emt 0:00:14]} 49. Kxe5 {[%emt 0:00:06]} Bd8 {[%emt 0:00:38]} 50. Nc4 {[%emt 0:00:10]} Bc7+ {[%emt 0:00:50]} 51. Ke6 {[%emt 0:00:05]} Bf4 {[%emt 0:00:28]} 52. f6 {[%emt 0:00:19]} Rc6+ {[%emt 0:00:25]} 53. Kf5 {[%emt 0:00:01]} Rc8 {[%emt 0:00:21]} 54. Rh7 {[%emt 0:00:17]} Rc6 {[%emt 0:00:27]} 55. h4 {[%emt 0:00:06]} 1-0

[Event "Teplice Open 2019"]
[Site "Teplice"]
[Date "2019.06.15"]
[Round "1.26"]
[White "Koubova, Anna Marie"]
[Black "Kraus, Tomas"]
[Result "0-1"]
[ECO "A60"]
[WhiteElo "2050"]
[BlackElo "2479"]
[Annotator "ChessBase"]
[PlyCount "56"]
[EventDate "2019.06.15"]
[EventType "swiss"]
[EventCountry "CZE"]
[SourceTitle "playchess.com"]
[Source "ChessBase"]
[SourceQuality "1"]
[TimeControl "40/5400+30:1800+30"]

1. d4 {[%emt 0:00:00]} Nf6 {[%emt 0:07:46]} 2. c4 {[%emt 0:00:00]} e6 {[%emt 0:00:25]} 3. Nf3 {[%emt 0:00:00]} c5 {[%emt 0:00:12]} 4. d5 {[%emt 0:00:23]} exd5 {[%emt 0:00:16]} 5. cxd5 {[%emt 0:00:07]} Bd6 {[%emt 0:00:06]} 6. Nc3 {[%emt 0:02:03]} Bc7 {[%emt 0:00:33]} 7. e3 {[%emt 0:00:54]} d6 {[%emt 0:00:51]} 8. Bd3 {[%emt 0:00:45]} a6 {[%emt 0:01:43]} 9. a4 {[%emt 0:00:43]} O-O {[%emt 0:00:54]} 10. Qc2 {[%emt 0:03:14]} Re8 {[%emt 0:02:22]} 11. O-O {[%emt 0:08:07]} Nbd7 {[%emt 0:01:23]} 12. b3 {[%emt 0:14:42]} Nf8 {[%emt 0:03:00]} 13. Bb2 {[%emt 0:07:56]} Rb8 {[%emt 0:01:32]} 14. Nh4 {[%emt 0:02:27]} Ng6 {[%emt 0:16:51]} 15. Nf5 {[%emt 0:01:57]} Ne5 {[%emt 0:02:58]} 16. e4 {[%emt 0:12:19]} Bxf5 {[%emt 0:08:55]} 17. exf5 {[%emt 0:00:09]} Ba5 {[%emt 0:00:46]} 18. Be4 {[%emt 0:19:26]} c4 {[%emt 0:04:54]} 19. bxc4 {[%emt 0:09:41]} Nxc4 {[%emt 0:03:37]} 20. Bd3 {[%emt 0:00:06]} Nxb2 {[%emt 0:05:08]} 21. Qxb2 {[%emt 0:00:05]} Re5 {[%emt 0:03:15]} 22. Rad1 {[%emt 0:03:22]} Rc8 {[%emt 0:06:51]} 23. Ne2 {[%emt 0:01:19]} Nxd5 {[%emt 0:02:26]} 24. Ng3 {[%emt 0:02:47]} Nc3 {[%emt 0:03:16]} 25. Ra1 {[%emt 0:01:33]} Qb6 {[%emt 0:03:36]} 26. Qxb6 {[%emt 0:01:29]} Bxb6 {[%emt 0:00:02]} 27. f6 {[%emt 0:01:15]} g6 {[%emt 0:00:45]} 28. h4 {[%emt 0:01:08]} Bd8 {[%emt 0:02:01]} 0-1

[Event "Teplice Open 2019"]
[Site "Teplice"]
[Date "2019.06.15"]
[Round "1.27"]
[White "Blohberger, Felix"]
[Black "Stanescu, Christian"]
[Result "1-0"]
[ECO "E60"]
[WhiteElo "2475"]
[BlackElo "2048"]
[Annotator "ChessBase"]
[PlyCount "106"]
[EventDate "2019.06.15"]
[EventType "swiss"]
[EventCountry "CZE"]
[SourceTitle "playchess.com"]
[Source "ChessBase"]
[SourceQuality "1"]
[TimeControl "40/5400+30:1800+30"]

1. Nf3 {[%emt 0:00:11]} Nf6 {[%emt 0:00:00]} 2. c4 {[%emt 0:02:01]} g6 {[%emt 0:02:18]} 3. b3 {[%emt 0:00:24]} Bg7 {[%emt 0:00:10]} 4. Bb2 {[%emt 0:00:06]} O-O {[%emt 0:00:10]} 5. e3 {[%emt 0:02:30]} d6 {[%emt 0:00:45]} 6. d4 {[%emt 0:00:06]} Nbd7 {[%emt 0:00:29]} 7. Be2 {[%emt 0:00:19]} e5 {[%emt 0:00:22]} 8. dxe5 {[%emt 0:00:33]} Ng4 {[%emt 0:00:19]} 9. O-O {[%emt 0:03:13]} Ngxe5 {[%emt 0:03:40]} 10. Nc3 {[%emt 0:01:13]} Nxf3+ {[%emt 0:00:51]} 11. Bxf3 {[%emt 0:00:27]} a5 {[%emt 0:00:15]} 12. Qd2 {[%emt 0:03:37]} Nc5 {[%emt 0:15:40]} 13. Nd5 {[%emt 0:01:47]} Bxb2 {[%emt 0:05:16]} 14. Qxb2 {[%emt 0:00:07]} f6 {[%emt 0:00:11]} 15. Rfd1 {[%emt 0:02:18]} Bd7 {[%emt 0:14:30]} 16. a3 {[%emt 0:07:19]} c6 {[%emt 0:08:45]} 17. Nc3 {[%emt 0:07:10]} Qe7 {[%emt 0:00:27]} 18. b4 {[%emt 0:02:11]} axb4 {[%emt 0:00:53]} 19. axb4 {[%emt 0:00:08]} Rxa1 {[%emt 0:07:18]} 20. Qxa1 {[%emt 0:00:30]} Na6 {[%emt 0:00:16]} 21. Qa5 {[%emt 0:13:06]} Be6 {[%emt 0:08:09]} 22. Bxc6 {[%emt 0:06:47]} Nxb4 {[%emt 0:07:28]} 23. Qxb4 {[%emt 0:03:51]} bxc6 {[%emt 0:00:10]} 24. Rxd6 {[%emt 0:09:27]} c5 {[%emt 0:03:42]} 25. Qxc5 {[%emt 0:09:59]} Rc8 {[%emt 0:00:33]} 26. Qb6 {[%emt 0:00:35]} Bxc4 {[%emt 0:06:31]} 27. Rc6 {[%emt 0:02:16]} Rxc6 {[%emt 0:03:38]} 28. Qxc6 {[%emt 0:00:08]} Be6 {[%emt 0:03:23]} 29. Ne4 {[%emt 0:03:08]} Kg7 {[%emt 0:00:32]} 30. Nc5 {[%emt 0:00:42]} Bf7 {[%emt 0:00:40]} 31. h3 {[%emt 0:00:27]} h5 {[%emt 0:02:21]} 32. Ne4 {[%emt 0:03:52]} Qe5 {[%emt 0:00:55]} 33. f4 {[%emt 0:04:28]} Qf5 {[%emt 0:02:43]} 34. Kh2 {[%emt 0:03:14]} h4 {[%emt 0:00:36]} 35. Nd6 {[%emt 0:02:25]} Qe6 {[%emt 0:01:19]} 36. Qc7 {[%emt 0:00:23]} f5 {[%emt 0:00:20]} 37. Qc5 {[%emt 0:05:24]} Qf6 {[%emt 0:00:22]} 38. Nb5 {[%emt 0:01:27]} Qe6 {[%emt 0:01:21]} 39. Nd4 {[%emt 0:00:37]} Qf6 {[%emt 0:01:34]} 40. Nf3 {[%emt 0:00:13]} Kh6 {[%emt 0:00:11]} 41. Qf8+ {[%emt 0:30:26]} Qg7 {[%emt 0:02:53]} 42. Qxg7+ {[%emt 0:00:00]} Kxg7 {[%emt 0:00:03]} 43. Nxh4 {[%emt 0:00:00]} Be6 {[%emt 0:00:43]} 44. Nf3 {[%emt 0:00:00]} Bd7 {[%emt 0:00:18]} 45. Kg1 {[%emt 0:00:00]} Kh6 {[%emt 0:00:11]} 46. Kf2 {[%emt 0:00:00]} Kh5 {[%emt 0:00:08]} 47. Ng5 {[%emt 0:00:00]} Bc6 {[%emt 0:00:48]} 48. g3 {[%emt 0:00:00]} Bb7 {[%emt 0:00:43]} 49. Ke2 {[%emt 0:00:00]} Ba6+ {[%emt 0:01:07]} 50. Kd2 {[%emt 0:00:00]} Bb7 {[%emt 0:00:02]} 51. Kd3 {[%emt 0:00:00]} Bg2 {[%emt 0:00:14]} 52. Kd4 {[%emt 0:00:00]} Bc6 {[%emt 0:00:23]} 53. Ke5 {[%emt 0:00:00]} Ba4 {[%emt 0:00:19] Ke4} 1-0

[Event "Teplice Open 2019"]
[Site "Teplice"]
[Date "2019.06.15"]
[Round "1.28"]
[White "Neumann, Filip"]
[Black "Warmerdam, Max"]
[Result "0-1"]
[ECO "A04"]
[WhiteElo "2047"]
[BlackElo "2475"]
[Annotator "ChessBase"]
[PlyCount "62"]
[EventDate "2019.06.15"]
[EventType "swiss"]
[EventCountry "CZE"]
[SourceTitle "playchess.com"]
[Source "ChessBase"]
[SourceQuality "1"]
[TimeControl "40/5400+30:1800+30"]

1. e4 {[%emt 0:00:00]} c5 {[%emt 0:00:00]} 2. Nf3 {[%emt 0:00:48]} e6 {[%emt 0:00:02]} 3. d3 {[%emt 0:00:51]} Nc6 {[%emt 0:01:28]} 4. g3 {[%emt 0:00:12]} g6 {[%emt 0:03:38]} 5. Bg2 {[%emt 0:01:29]} Bg7 {[%emt 0:00:06]} 6. O-O {[%emt 0:00:48]} Nge7 {[%emt 0:00:31]} 7. Re1 {[%emt 0:04:21]} e5 {[%emt 0:16:30]} 8. Nc3 {[%emt 0:01:59]} d6 {[%emt 0:01:32]} 9. Nd2 {[%emt 0:02:52]} O-O {[%emt 0:00:52]} 10. Nc4 {[%emt 0:00:23]} Be6 {[%emt 0:03:41]} 11. Ne3 {[%emt 0:08:12]} Qd7 {[%emt 0:01:45]} 12. h4 {[%emt 0:08:23]} f5 {[%emt 0:07:11]} 13. Ned5 {[%emt 0:07:27]} Rae8 {[%emt 0:30:08]} 14. Bg5 {[%emt 0:05:55]} Bxd5 {[%emt 0:05:44]} 15. exd5 {[%emt 0:01:35]} Nd8 {[%emt 0:00:17]} 16. h5 {[%emt 0:05:58]} Nf7 {[%emt 0:00:26]} 17. Bxe7 {[%emt 0:01:36]} Rxe7 {[%emt 0:00:19]} 18. hxg6 {[%emt 0:02:49]} hxg6 {[%emt 0:00:12]} 19. Rb1 {[%emt 0:04:38]} Rc8 {[%emt 0:09:41]} 20. Ne2 {[%emt 0:02:29]} b5 {[%emt 0:01:18]} 21. c4 {[%emt 0:01:42]} bxc4 {[%emt 0:00:31]} 22. dxc4 {[%emt 0:00:21]} Bh6 {[%emt 0:00:08]} 23. Nc3 {[%emt 0:02:01]} e4 {[%emt 0:01:15]} 24. f3 {[%emt 0:07:56]} Ne5 {[%emt 0:01:59]} 25. b3 {[%emt 0:04:24]} exf3 {[%emt 0:01:40]} 26. Bxf3 {[%emt 0:00:14]} Rce8 {[%emt 0:00:11]} 27. Rf1 {[%emt 0:04:08]} Be3+ {[%emt 0:01:50]} 28. Kg2 {[%emt 0:00:08]} Bd4 {[%emt 0:01:33]} 29. Nb5 {[%emt 0:00:53]} Nxf3 {[%emt 0:00:20]} 30. Rxf3 {[%emt 0:00:40]} Re2+ {[%emt 0:00:06]} 31. Kf1 {[%emt 0:00:18]} Qh7 {[%emt 0:00:06]} 0-1

[Event "Teplice Open 2019"]
[Site "Teplice"]
[Date "2019.06.15"]
[Round "1.29"]
[White "Gavrilescu, David"]
[Black "Gallik, Miroslav"]
[Result "1-0"]
[ECO "C30"]
[WhiteElo "2475"]
[BlackElo "2046"]
[Annotator "ChessBase"]
[PlyCount "87"]
[EventDate "2019.06.15"]
[EventType "swiss"]
[EventCountry "CZE"]
[SourceTitle "playchess.com"]
[Source "ChessBase"]
[SourceQuality "1"]
[TimeControl "40/5400+30:1800+30"]

1. e4 {[%emt 0:00:00]} e5 {[%emt 0:00:00]} 2. Bc4 {[%emt 0:00:25]} Nc6 {[%emt 0:00:07]} 3. Nc3 {[%emt 0:00:56]} Nf6 {[%emt 0:02:05]} 4. d3 {[%emt 0:00:39]} Bc5 {[%emt 0:05:09]} 5. f4 {[%emt 0:02:09]} d6 {[%emt 0:05:21]} 6. Nf3 {[%emt 0:00:58]} a6 {[%emt 0:08:17]} 7. f5 {[%emt 0:02:13]} h6 {[%emt 0:02:03]} 8. Qe2 {[%emt 0:03:01]} b5 {[%emt 0:05:20]} 9. Bb3 {[%emt 0:03:41]} Bb7 {[%emt 0:05:26]} 10. Nd5 {[%emt 0:06:13]} Na5 {[%emt 0:08:41]} 11. Nxf6+ {[%emt 0:05:25]} Qxf6 {[%emt 0:00:22]} 12. g4 {[%emt 0:02:47]} Nxb3 {[%emt 0:03:27]} 13. axb3 {[%emt 0:00:36]} O-O-O {[%emt 0:02:31]} 14. c4 {[%emt 0:04:21]} c6 {[%emt 0:04:20]} 15. Be3 {[%emt 0:03:49]} Bxe3 {[%emt 0:06:02]} 16. Qxe3 {[%emt 0:01:49]} Kc7 {[%emt 0:01:03]} 17. b4 {[%emt 0:04:18]} Qe7 {[%emt 0:10:24]} 18. Kf2 {[%emt 0:02:48]} Kb8 {[%emt 0:02:43]} 19. Rhc1 {[%emt 0:06:03]} Rhe8 {[%emt 0:07:55]} 20. cxb5 {[%emt 0:08:24]} cxb5 {[%emt 0:00:25]} 21. Qb6 {[%emt 0:00:15]} Rc8 {[%emt 0:02:19]} 22. Rxc8+ {[%emt 0:03:38]} Rxc8 {[%emt 0:00:02]} 23. Rxa6 {[%emt 0:00:21]} Rc6 {[%emt 0:03:06]} 24. Qa7+ {[%emt 0:00:57]} Kc7 {[%emt 0:00:07]} 25. Rxc6+ {[%emt 0:02:10]} Kxc6 {[%emt 0:00:06]} 26. d4 {[%emt 0:00:11]} Kc7 {[%emt 0:11:14]} 27. d5 {[%emt 0:08:24]} Kc8 {[%emt 0:00:00]} 28. Qb6 {[%emt 0:00:48]} g6 {[%emt 0:00:00]} 29. Qxb5 {[%emt 0:00:51]} gxf5 {[%emt 0:00:04]} 30. gxf5 {[%emt 0:00:07]} Qd8 {[%emt 0:00:51]} 31. Qa5 {[%emt 0:00:56]} Qg8 {[%emt 0:00:59]} 32. b5 {[%emt 0:00:06]} h5 {[%emt 0:00:34]} 33. Qc3+ {[%emt 0:02:02]} Kd7 {[%emt 0:01:22]} 34. Qe3 {[%emt 0:01:45]} Qc8 {[%emt 0:01:30]} 35. Kg3 {[%emt 0:01:46]} Qc4 {[%emt 0:00:35]} 36. Qb6 {[%emt 0:00:16]} Kc8 {[%emt 0:00:29]} 37. Qxd6 {[%emt 0:00:57]} Qxe4 {[%emt 0:00:12]} 38. Qf8+ {[%emt 0:00:08]} Kc7 {[%emt 0:00:11]} 39. Qxf7+ {[%emt 0:00:27]} Kb6 {[%emt 0:00:11]} 40. Qe6+ {[%emt 0:00:30]} Kxb5 {[%emt 0:00:02]} 41. Qxe5 {[%emt 0:30:08]} h4+ {[%emt 0:31:16]} 42. Kf2 {[%emt 0:00:55]} Qxe5 {[%emt 0:00:59]} 43. Nxe5 {[%emt 0:00:01]} Bxd5 {[%emt 0:00:15]} 44. f6 {[%emt 0:00:02]} 1-0

[Event "Teplice Open 2019"]
[Site "Teplice"]
[Date "2019.06.15"]
[Round "1.30"]
[White "Pacl, Vaclav"]
[Black "Loiseau, Quentin"]
[Result "0-1"]
[ECO "A11"]
[WhiteElo "2045"]
[BlackElo "2471"]
[Annotator "ChessBase"]
[PlyCount "50"]
[EventDate "2019.06.15"]
[EventType "swiss"]
[EventCountry "CZE"]
[SourceTitle "playchess.com"]
[Source "ChessBase"]
[SourceQuality "1"]
[TimeControl "40/5400+30:1800+30"]

1. Nf3 {[%emt 1:07:20]} d5 {[%emt 0:00:16]} 2. e3 {[%emt 0:00:53]} Nf6 {[%emt 0:00:30]} 3. c4 {[%emt 0:00:10]} c6 {[%emt 0:00:25]} 4. Nc3 {[%emt 0:00:40]} e6 {[%emt 0:00:07]} 5. b3 {[%emt 0:00:27]} Bd6 {[%emt 0:00:18]} 6. Bb2 {[%emt 0:00:15]} O-O {[%emt 0:00:09]} 7. Qc2 {[%emt 0:01:59]} e5 {[%emt 0:00:59]} 8. cxd5 {[%emt 0:00:26]} cxd5 {[%emt 0:00:06]} 9. Nb5 {[%emt 0:00:23]} Nc6 {[%emt 0:00:04]} 10. Nxd6 {[%emt 0:02:47]} Qxd6 {[%emt 0:00:02]} 11. Bb5 {[%emt 0:12:36]} Nb4 {[%emt 0:03:11]} 12. Qc1 {[%emt 0:00:07]} Qb6 {[%emt 0:28:34]} 13. Be2 {[%emt 0:02:57]} Bf5 {[%emt 0:02:15]} 14. O-O {[%emt 0:03:51]} Rac8 {[%emt 0:03:26]} 15. Bc3 {[%emt 0:05:09]} Nc2 {[%emt 0:02:47]} 16. Nh4 {[%emt 0:06:08]} Be4 {[%emt 0:01:55]} 17. f3 {[%emt 0:04:25]} d4 {[%emt 0:05:21]} 18. fxe4 {[%emt 0:03:00]} Nxa1 {[%emt 0:01:33]} 19. Nf5 {[%emt 0:00:25]} dxc3 {[%emt 0:03:57]} 20. Ne7+ {[%emt 0:05:28]} Kh8 {[%emt 0:00:30]} 21. Nxc8 {[%emt 0:00:08]} Rxc8 {[%emt 0:00:52]} 22. Bc4 {[%emt 0:05:36]} cxd2 {[%emt 0:13:11]} 23. Qxd2 {[%emt 0:02:25]} Nxe4 {[%emt 0:01:42]} 24. Qd3 {[%emt 0:05:46]} Nc2 {[%emt 0:00:46]} 25. Qxe4 {[%emt 0:00:44]} Nxe3 {[%emt 0:00:33]} 0-1